fUST/lending_fUST_20251025
["ID","MTS","AMOUNT","RATE_DAILY","PERIOD"]
[392357490,1761399614779,-500.0,0.00018185,2]
[392357491,1761399614809,-500.0,0.00018185,2]
[392357492,1761399614841,-1731.22,0.00018185,2]
[392357493,1761399614871,-500.0,0.00018185,2]
[392357494,1761399614900,-143.23,0.00018185,2]
[392357495,1761399615103,-356.77,0.00018185,2]
[392357496,1761399615135,-500.0,0.00018185,2]
[392357497,1761399615167,-502.9556671,0.00018185,2]
[392357498,1761399615200,-500.0,0.00018185,2]
[392357499,1761399615234,-885.96,0.00018185,2]
[392357500,1761399615267,-500.0,0.00018185,2]
[392357501,1761399615300,-500.0,0.00018185,2]
[392357502,1761399615335,-1244.97,0.00018185,2]
[392357503,1761399616543,-178.89,0.00018175,2]
[392357504,1761399616553,-500.0,0.00018185,2]
[392357505,1761399616562,-65.45965541,0.00018185,2]
[392357506,1761399616679,-440.49128573,0.00018185,2]
[392357507,1761399616690,-59.50871427,0.00018185,2]
[392357508,1761399616710,-447.11918361,0.00018185,2]
[392357509,1761399616718,-52.88081639,0.00018185,2]
[392357510,1761399616736,-447.11918361,0.00018185,2]
[392357511,1761399616745,-666.87,0.00018185,2]
[392357512,1761399616754,-130.98081639,0.00018185,2]
[392357513,1761399616772,-18.6986658,0.00018185,2]
[392357514,1761399618062,-4936.2079134,0.00018082,2]
[392357515,1761399618090,-127.5941732,0.00018082,2]
[392357516,1761399618363,-349.03617304,0.00018185,2]
[392357517,1761399618396,-500.0,0.00018185,2]
[392357518,1761399618428,-500.0,0.00018185,2]
[392357519,1761399618461,-500.0,0.00018185,2]
[392357520,1761399618493,-1854.83,0.00018185,2]
[392357521,1761399618524,-535.29,0.00018185,2]
[392357522,1761399618556,-500.0,0.00018185,2]
[392357523,1761399618588,-21.69765392,0.00018185,2]
[392357524,1761399618708,-478.30234608,0.00018185,2]
[392357525,1761399618737,-500.0,0.00018185,2]
[392357526,1761399618767,-500.0,0.00018185,2]
[392357527,1761399618798,-603.30805872,0.00018185,2]
[392357528,1761399618834,-500.0,0.00018185,2]
[392357529,1761399618866,-828.07,0.00018185,2]
[392357530,1761399618898,-786.94,0.00018185,2]
[392357531,1761399618929,-500.0,0.00018185,2]
[392357532,1761399618961,-106.7691904,0.00018185,2]
[392357533,1761399619303,-393.2308096,0.00018184,2]
[392357534,1761399619326,-500.0,0.00018184,2]
[392357535,1761399629913,-500.0,0.00018173,2]
[392357536,1761399629947,-500.0,0.00018184,2]
[392357537,1761399629981,-500.0,0.00018184,2]
[392357538,1761399630016,-500.0,0.00018184,2]
[392357539,1761399630048,-500.0,0.00018184,2]
[392357540,1761399630079,-500.0,0.00018184,2]
[392357541,1761399630112,-250.8587488,0.00018184,2]
[392357542,1761399630148,-500.0,0.00018184,2]
[392357543,1761399630180,-500.0,0.00018184,2]
[392357544,1761399630213,-500.0,0.00018184,2]
[392357545,1761399630350,-500.0,0.00018173,2]
[392357546,1761399630383,-500.0,0.00018184,2]
[392357547,1761399630416,-500.0,0.00018184,2]
[392357548,1761399630449,-500.0,0.00018184,2]
[392357549,1761399630482,-500.0,0.00018184,2]
[392357550,1761399630557,-500.0,0.00018184,2]
[392357551,1761399630590,-250.48686476,0.00018184,2]
[392357552,1761399630622,-723.1091904,0.00018184,2]
[392357553,1761399630654,-500.0,0.00018184,2]
[392357554,1761399630687,-500.0,0.00018184,2]
[392357555,1761399630862,-500.0,0.00018184,2]
[392357556,1761399630894,-500.0,0.00018184,2]
[392357557,1761399630927,-500.0,0.00018184,2]
[392357558,1761399630958,-1012.44,0.00018184,2]
[392357559,1761399630990,-393.2308096,0.00018185,2]
[392357560,1761399631022,-500.0,0.00018185,2]
[392357561,1761399631054,-500.0,0.00018185,2]
[392357562,1761399631087,-551.71,0.00018185,2]
[392357563,1761399631119,-500.0,0.00018185,2]
[392357564,1761399631228,-500.0,0.00018185,2]
[392357565,1761399631260,-500.0,0.00018185,2]
[392357566,1761399631290,-1025.62,0.00018185,2]
[392357567,1761399631321,-500.0,0.00018185,2]
[392357568,1761399631354,-500.0,0.00018185,2]
[392357569,1761399631383,-500.0,0.00018185,2]
[392357570,1761399631414,-500.0,0.00018185,2]
[392357571,1761399631446,-500.0,0.00018185,2]
[392357572,1761399631478,-448.77,0.00018185,2]
[392357573,1761399631696,-51.23,0.00018185,2]
[392357574,1761399631726,-461.03833935,0.00018185,2]
[392357575,1761399631756,-500.0,0.00018185,2]
[392357576,1761399631786,-500.0,0.00018185,2]
[392357577,1761399631815,-500.0,0.00018185,2]
[392357578,1761399631845,-500.0,0.00018185,2]
[392357579,1761399631875,-500.0,0.00018185,2]
[392357580,1761399631905,-500.0,0.00018185,2]
[392357581,1761399631935,-526.65,0.00018185,2]
[392357582,1761399631966,-500.0,0.00018185,2]
[392357583,1761399631998,-422.1733213,0.00018185,2]
[392357584,1761399632923,-77.8266787,0.00018185,2]
[392357585,1761399632932,-241.56627048,0.00018185,2]
[392357586,1761399632951,-500.0,0.00018185,2]
[392357587,1761399710118,196.0,0.00016,2]
[392357588,1761399714851,-389.95284987,0.000181,2]
[392357589,1761399714884,-503.05602523,0.00018173,2]
[392357590,1761399714917,-500.0,0.00018173,2]
[392357591,1761399714952,-500.0,0.00018173,2]
[392357592,1761399714985,-500.0,0.00018173,2]
[392357593,1761399715018,-500.0,0.00018173,2]
[392357594,1761399715050,-160.0,0.00018173,2]
[392357595,1761399715082,-462.76,0.00018178,3]
[392357596,1761399715115,-231.38,0.00018178,3]
[392357597,1761399715147,-300.0,0.00018183,2]
[392357598,1761399715181,-831.88,0.00018184,2]
[392357599,1761399715596,-45.9522498,0.00018184,2]
[392357600,1761399720223,-522.69762764,0.00018184,2]
[392357601,1761399720256,-500.0,0.00018184,2]
[392357602,1761399720289,-796.62,0.00018184,2]
[392357603,1761399720323,-502.73,0.00018184,2]
[392357604,1761399720355,-1209.31,0.00018184,2]
[392357605,1761399720389,-500.0,0.00018184,2]
[392357606,1761399720425,-428.82474472,0.00018184,2]
[392357607,1761399720613,-1079.64525528,0.00018184,2]
[392357608,1761399726772,-694.17,0.00018178,3]
[392357609,1761399726809,-300.0,0.00018183,2]
[392357610,1761399726845,-500.0,0.00018184,2]
[392357611,1761399726887,-500.0,0.00018184,2]
[392357612,1761399726926,-963.51,0.00018184,2]
[392357613,1761399726969,-803.28,0.00018184,2]
[392357614,1761399727009,-1104.95,0.00018184,2]
[392357615,1761399727224,-268.19,0.00018184,2]
[392357616,1761399738847,1822.16776334,0.00017976,2]
[392357617,1761399761580,3191.12865027,0.00017976,2]
[392357618,1761399765497,-851.73,0.00018075,3]
[392357619,1761399765529,-331.88579084,0.0001808,2]
[392357620,1761399765559,-1200.0,0.00018084,2]
[392357621,1761399785236,300.0,0.00018084,2]
[392357622,1761399790825,302.51058915,0.00018084,2]
[392357623,1761399790857,367.50331427,0.00018084,2]
[392357624,1761399791859,500.0,0.00018084,2]
[392357625,1761399791891,500.0,0.00018084,2]
[392357626,1761399791922,500.0,0.00018084,2]
[392357627,1761399791956,500.0,0.00018084,2]
[392357628,1761399791986,398.5438419,0.00018084,2]
[392357629,1761399792016,500.0,0.00018084,2]
[392357630,1761399792049,473.98381591,0.00018084,2]
[392357631,1761399792079,479.69494342,0.00018084,2]
[392357632,1761399792112,410.54191367,0.00018084,2]
[392357633,1761399792139,89.45808633,0.00018084,2]
[392357634,1761399792172,305.65097209,0.00018084,2]
[392357635,1761399792200,207.8914152,0.00018084,2]
[392357636,1761399792235,500.0,0.00018084,2]
[392357637,1761399792269,190.66798673,0.00018084,2]
[392357638,1761399796159,300.0,0.00018,2]
[392357639,1761399809132,361.49763612,0.00017516,2]
[392357640,1761399846347,300.0,0.00018084,2]
[392357641,1761399849738,997.13739694,0.00018078,2]
[392357642,1761399862502,500.0,0.00018084,2]
[392357643,1761399862877,797.22,0.00018084,2]
[392357644,1761399864323,500.0,0.00018084,2]
[392357645,1761399868821,453.16065036,0.00018084,2]
[392357646,1761399876663,500.0,0.00018084,2]
[392357647,1761399878943,1158.92,0.00018084,2]
[392357648,1761399880644,500.0,0.00018084,2]
[392357649,1761399886821,288.47170653,0.00018078,2]
[392357650,1761399887811,769.81,0.00018084,2]
[392357651,1761399891117,500.0,0.00018084,2]
[392357652,1761399894761,195.22085147,0.00018078,2]
[392357653,1761399896764,195.22085147,0.00018084,2]
[392357654,1761399901961,300.0,0.00018084,2]
[392357655,1761399902988,89.68244676,0.00018084,2]
[392357656,1761399903044,210.31755324,0.00018084,2]
[392357657,1761399903503,300.0,0.00018084,2]
[392357658,1761399903815,300.0,0.00018084,2]
[392357659,1761399904040,300.0,0.00018084,2]
[392357660,1761399907530,1200.0,0.00018084,2]
[392357661,1761399914176,500.0,0.00018084,2]
[392357662,1761399917050,500.0,0.00018084,2]
[392357663,1761399919814,500.0,0.00018084,2]
[392357664,1761399919890,500.0,0.00018084,2]
[392357665,1761399922095,500.0,0.00018084,2]
[392357666,1761399922157,500.0,0.00018084,2]
[392357667,1761399924176,500.0,0.00018084,2]
[392357668,1761399924257,1284.95,0.00018084,2]
[392357669,1761399924334,500.0,0.00018084,2]
[392357670,1761399924974,500.0,0.00018084,2]
[392357671,1761399925786,500.0,0.00018084,2]
[392357672,1761399926707,413.1565635,0.00017187,2]
[392357673,1761399928314,500.0,0.00018084,2]
[392357674,1761399928369,491.58588326,0.00018084,2]
[392357675,1761399928416,8.41411674,0.00018084,2]
[392357676,1761399928500,500.0,0.00018084,2]
[392357677,1761399929063,500.0,0.00018084,2]
[392357678,1761399929290,500.0,0.00018084,2]
[392357679,1761399929534,500.0,0.00018084,2]
[392357680,1761399932212,850.41,0.00018084,2]
[392357681,1761399934932,500.0,0.00018084,2]
[392357682,1761399935278,500.0,0.00018084,2]
[392357683,1761399936701,500.0,0.00018084,2]
[392357684,1761399937054,534.93850502,0.00018084,2]
[392357685,1761399937139,1237.14,0.00018084,2]
[392357686,1761399938095,500.0,0.00018084,2]
[392357687,1761399938152,500.0,0.00018084,2]
[392357688,1761399940179,500.0,0.00018084,2]
[392357689,1761399941919,1327.68,0.00018084,2]
[392357690,1761399941972,500.0,0.00018084,2]
[392357691,1761399950015,500.0,0.00018084,2]
[392357692,1761399950070,41.42737824,0.00018084,2]
[392357693,1761399950119,2169.46262176,0.00018084,2]
[392357694,1761399952445,500.0,0.00018084,2]
[392357695,1761399955501,500.0,0.00018084,2]
[392357701,1761399957693,910.22,0.00018084,2]
[392357702,1761399958273,500.0,0.00018084,2]
[392357703,1761399959580,500.0,0.00018084,2]
[392357704,1761399960734,500.0,0.00018084,2]
[392357706,1761399963382,300.0,0.00018084,2]
[392357707,1761399963450,500.0,0.00018084,2]
[392357708,1761399964247,396.00617696,0.00017516,2]
[392357709,1761399965535,575.74,0.00018084,2]
[392357710,1761399966559,500.0,0.00018084,2]
[392357711,1761399967457,514.48577647,0.00018084,2]
[392357712,1761399970733,500.0,0.00018084,2]
[392357713,1761399970945,500.0,0.00018084,2]
[392357714,1761399971995,500.0,0.00018084,2]
[392357715,1761399974074,134.09542481,0.00018084,2]
[392357716,1761399974126,365.90457519,0.00018084,2]
[392357717,1761399975918,1771.82,0.00018084,2]
[392357718,1761399977220,500.0,0.00018084,2]
[392357719,1761399978456,500.0,0.00018084,2]
[392357720,1761399985231,3051.67,0.00018084,2]
[392357721,1761399986777,276.58616224,0.00018,2]
[392357722,1761399988924,494.95452777,0.00018084,2]
[392357723,1761399990618,500.0,0.00018084,2]
[392357724,1761399994830,911.5,0.00018084,2]
[392357725,1761399995569,1627.5747348,0.00017323,2]
[392357726,1761399995627,10000.01,0.00017323,2]
[392357727,1761399995679,10000.01,0.00017323,2]
[392357728,1761399995731,10000.01,0.00017323,2]
[392357729,1761399995788,10000.01,0.00017323,2]
[392357730,1761399995840,3512.9130807,0.00017323,2]
[392357731,1761399997896,500.0,0.00018084,2]
[392357732,1761399998167,1179.29,0.00018084,2]
[392357733,1761399999560,150.98989555,0.00018084,2]
[392357734,1761400002007,500.0,0.00018084,2]
[392357735,1761400003114,500.0,0.00018084,2]
[392357736,1761400003689,500.0,0.00018084,2]
[392357737,1761400005792,3156.81702375,0.00017185,2]
[392357738,1761400005841,4225.58072245,0.00017185,2]
[392357739,1761400007256,500.0,0.00018084,2]
[392357740,1761400008271,500.0,0.00018084,2]
[392357741,1761400010961,500.0,0.00018084,2]
[392357742,1761400012289,1878.19,0.00018084,2]
[392357743,1761400012768,500.0,0.00018084,2]
[392357744,1761400014808,500.0,0.00018084,2]
[392357745,1761400018901,500.0,0.00018084,2]
[392357746,1761400019377,896.23927755,0.00018084,2]
[392357747,1761400019426,616.77072245,0.00018084,2]
[392357748,1761400019479,512.74769931,0.00018084,2]
[392357749,1761400019804,4809.6029153,0.00018085,2]
[392357750,1761400021211,500.0,0.00018084,2]
[392357751,1761400023700,300.0,0.00018084,2]
[392357752,1761400026015,500.0,0.00018084,2]
[392357753,1761400027813,2760.88866294,0.00018085,2]
[392357754,1761400027868,2239.11133706,0.00018085,2]
[392357755,1761400027943,500.0,0.00018084,2]
[392357756,1761400028302,500.0,0.00018084,2]
[392357757,1761400029371,500.0,0.00018084,2]
[392357758,1761400030127,965.7,0.00018084,2]
[392357759,1761400032610,500.0,0.00018084,2]
[392357760,1761400033286,500.0,0.00018084,2]
[392357761,1761400036915,512.88206808,0.00018084,2]
[392357762,1761400038076,2293.18,0.00018084,2]
[392357763,1761400040469,500.0,0.00018084,2]
[392357764,1761400042518,500.0,0.00018084,2]
[392357765,1761400042601,489.13659486,0.00018084,2]
[392357766,1761400042669,10.86340514,0.00018084,2]
[392357767,1761400044429,500.0,0.00018084,2]
[392357768,1761400044661,500.0,0.00018084,2]
[392357769,1761400046093,949.2,0.00018084,2]
[392357770,1761400046421,500.0,0.00018084,2]
[392357771,1761400049722,505.00570231,0.00018084,2]
[392357772,1761400050168,500.0,0.00018084,2]
[392357773,1761400052355,500.0,0.00018084,2]
[392357774,1761400058227,503.04841535,0.00018084,2]
[392357775,1761400059155,500.0,0.00018084,2]
[392357776,1761400059918,500.0,0.00018084,2]
[392357777,1761400063069,500.0,0.00018084,2]
[392357778,1761400064133,500.0,0.00018084,2]
[392357779,1761400065842,1920.49,0.00018084,2]
[392357780,1761400066841,500.0,0.00018084,2]
[392357781,1761400076168,500.0,0.00018084,2]
[392357782,1761400077180,611.4024772,0.00018084,2]
[392357783,1761400077229,154.8975228,0.00018084,2]
[392357784,1761400077454,500.0,0.00018084,2]
[392357785,1761400079607,500.0,0.00018084,2]
[392357786,1761400081999,500.0,0.00018084,2]
[392357787,1761400085100,500.0,0.00018084,2]
[392357788,1761400085785,1753.7,0.00018084,2]
[392357789,1761400086273,500.0,0.00018084,2]
[392357790,1761400088883,500.0,0.00018084,2]
[392357791,1761400089391,215.53835375,0.00018084,2]
[392357793,1761400090931,500.0,0.00018084,2]
[392357794,1761400091523,1628.06,0.00018084,2]
[392357795,1761400092717,764.0,0.00018084,2]
[392357796,1761400093875,886.904501,0.00013699,2]
[392357797,1761400094868,693.12,0.00018084,2]
[392357798,1761400097803,403.78962245,0.00018084,2]
[392357799,1761400097849,115.20016727,0.00018084,2]
[392357800,1761400099412,500.0,0.00018084,2]
[392357801,1761400102603,500.0,0.00018084,2]
[392357802,1761400102659,500.0,0.00018084,2]
[392357803,1761400102984,1019.78,0.00018084,2]
[392357804,1761400104211,500.0,0.00018084,2]
[392357805,1761400107149,500.0,0.00018084,2]
[392357806,1761400107731,500.0,0.00018084,2]
[392357807,1761400108615,1110.63,0.00018084,2]
[392357808,1761400110115,664.75826462,0.00017992,2]
[392357809,1761400111273,500.0,0.00018084,2]
[392357810,1761400114181,500.0,0.00018084,2]
[392357811,1761400117949,545.72,0.00018084,2]
[392357812,1761400118007,737.74,0.00018084,2]
[392357813,1761400118378,500.0,0.00018084,2]
[392357814,1761400119349,666.0,0.00017183,2]
[392357815,1761400120661,640.18156811,0.00018084,2]
[392357816,1761400120714,162.21843189,0.00018084,2]
[392357817,1761400122521,500.0,0.00018084,2]
[392357818,1761400122761,500.0,0.00018084,2]
[392357819,1761400122984,500.0,0.00018084,2]
[392357820,1761400123213,500.0,0.00018084,2]
[392357821,1761400123495,500.0,0.00018084,2]
[392357822,1761400123722,500.0,0.00018084,2]
[392357823,1761400123967,173.58,0.00018084,2]
[392357824,1761400124165,500.0,0.00018084,2]
[392357825,1761400126138,500.0,0.00018084,2]
[392357826,1761400126610,500.0,0.00018084,2]
[392357827,1761400126661,500.0,0.00018084,2]
[392357828,1761400126875,500.0,0.00018084,2]
[392357829,1761400130996,500.0,0.00018084,2]
[392357830,1761400133275,1111.76,0.00018084,2]
[392357831,1761400139764,500.0,0.00018084,2]
[392357832,1761400139865,503.49229663,0.00018084,2]
[392357833,1761400140857,500.0,0.00018084,2]
[392357834,1761400142364,508.03,0.00018084,2]
[392357835,1761400143010,500.0,0.00018084,2]
[392357836,1761400143141,40.92927148,0.00018084,2]
[392357837,1761400143196,1404.69072852,0.00018084,2]
[392357838,1761400143948,500.0,0.00018084,2]
[392357839,1761400144492,300.0,0.00018084,2]
[392357840,1761400146276,500.0,0.00018084,2]
[392357841,1761400146928,1633.6,0.00018084,2]
[392357842,1761400148227,500.0,0.00018084,2]
[392357843,1761400150624,500.0,0.00018084,2]
[392357844,1761400154198,2365.47,0.00018084,2]
[392357845,1761400154546,512.08918601,0.00018084,2]
[392357846,1761400157110,1231.42,0.00018084,2]
[392357847,1761400160522,552.74008547,0.00018084,2]
[392357848,1761400160568,262.22991453,0.00018084,2]
[392357849,1761400162490,500.0,0.00018084,2]
[392357850,1761400166959,252.41274324,0.00017992,2]
[392357851,1761400167606,500.0,0.00018084,2]
[392357852,1761400169960,1185.59,0.00018084,2]
[392357853,1761400171200,519.79698183,0.00018084,2]
[392357854,1761400171660,500.0,0.00018084,2]
[392357855,1761400172190,500.0,0.00018084,2]
[392357856,1761400174101,500.0,0.00018084,2]
[392357857,1761400174400,500.0,0.00018084,2]
[392357858,1761400176820,500.0,0.00018084,2]
[392357859,1761400177991,500.0,0.00018084,2]
[392357860,1761400178640,500.0,0.00018084,2]
[392357861,1761400179361,2118.77,0.00018084,2]
[392357862,1761400180684,500.0,0.00018084,2]
[392357863,1761400184287,661.2103604,0.00018084,2]
[392357864,1761400184333,247.8196396,0.00018084,2]
[392357865,1761400184844,523.15,0.00018084,2]
[392357866,1761400185766,500.0,0.00018084,2]
[392357867,1761400187346,872.29,0.00018084,2]
[392357868,1761400191190,730.78,0.00018084,2]
[392357869,1761400194932,551.75,0.00018084,2]
[392357870,1761400197100,500.0,0.00018084,2]
[392357871,1761400204265,793.0,0.00018084,2]
[392357872,1761400204658,300.0,0.00018084,2]
[392357873,1761400206002,501.45007774,0.00018084,2]
[392357874,1761400207078,1697.99,0.00018084,2]
[392357875,1761400207755,500.0,0.00018084,2]
[392357876,1761400209530,500.0,0.00018084,2]
[392357877,1761400210034,1685.06,0.00018084,2]
[392357878,1761400211798,96.72028266,0.00018084,2]
[392357879,1761400211852,403.27971734,0.00018084,2]
[392357880,1761400215765,2924.52,0.00018084,2]
[392357881,1761400216076,500.0,0.00018084,2]
[392357882,1761400216656,500.0,0.00018084,2]
[392357883,1761400218801,500.0,0.00018084,2]
[392357884,1761400219778,213.96859442,0.00018085,2]
[392357885,1761400220075,921.6,0.00018084,2]
[392357886,1761400220148,150.0,0.00019726,30]
[392357887,1761400220553,1298.69,0.00018084,2]
[392357888,1761400222704,500.0,0.00018084,2]
[392357889,1761400228582,1130.15,0.00018084,2]
[392357890,1761400228970,500.0,0.00018084,2]
[392357891,1761400231389,500.0,0.00018084,2]
[392357909,1761400231917,-1041.65178104,0.00018085,2]
[392357938,1761400233365,107.80168824,0.00018084,2]
[392357939,1761400233422,800.35831176,0.00018084,2]
[392357940,1761400234541,500.0,0.00018084,2]
[392357941,1761400236820,3187.31,0.00018084,2]
[392357955,1761400238150,-1163.32,0.00018085,2]
[392357956,1761400238298,1799.94,0.00018084,2]
[392357957,1761400238596,500.0,0.00018084,2]
[392357984,1761400240219,-1518.23988228,0.00018085,2]
[392357986,1761400240230,-10590.0,0.00018085,2]
[392358001,1761400241915,500.0,0.00018084,2]
[392358002,1761400242414,500.0,0.00018084,2]
[392358004,1761400245837,1523.98,0.00018084,2]
[392358005,1761400246023,-2534.8264845,0.00018085,2]
[392358006,1761400246038,-5615.02255705,0.00018085,2]
[392358007,1761400250848,616.04,0.00018084,2]
[392358008,1761400251207,72.38168824,0.00018084,2]
[392358009,1761400251260,427.61831176,0.00018084,2]
[392358010,1761400251447,500.0,0.00018084,2]
[392358011,1761400252272,602.76,0.00018084,2]
[392358012,1761400252435,500.0,0.00018084,2]
[392358013,1761400253039,621.78,0.00018084,2]
[392358014,1761400253865,500.0,0.00018084,2]
[392358015,1761400258325,500.0,0.00018084,2]
[392358016,1761400258698,1828.87,0.00018084,2]
[392358017,1761400259415,500.0,0.00018084,2]
[392358018,1761400259814,500.0,0.00018084,2]
[392358019,1761400260969,500.0,0.00018084,2]
[392358020,1761400261697,925.46,0.00018084,2]
[392358021,1761400261860,508.82,0.00018084,2]
[392358027,1761400264594,300.0,0.00018084,2]
[392358028,1761400264755,500.0,0.00018084,2]
[392358029,1761400264837,500.0,0.00018084,2]
[392358030,1761400264896,284.70168824,0.00018084,2]
[392358031,1761400264955,131.77495642,0.00018084,2]
[392358032,1761400265100,500.0,0.00018084,2]
[392358033,1761400265717,500.0,0.00018084,2]
[392358034,1761400266153,581.87,0.00018084,2]
[392358035,1761400266357,1304.57,0.00018084,2]
[392358036,1761400267269,206.5999164,8.591e-05,2]
[392358037,1761400267812,545.75647055,0.00018084,2]
[392358038,1761400268682,1746.43,0.00018084,2]
[392358039,1761400269504,2314.33,0.00018084,2]
[392358040,1761400269900,500.0,0.00018084,2]
[392358041,1761400270650,973.03,0.00018084,2]
[392358042,1761400271934,500.0,0.00018084,2]
[392358043,1761400273440,195.64865663,0.00018084,2]
[392358044,1761400273493,304.35134337,0.00018084,2]
[392358045,1761400276417,509.33058646,0.00018084,2]
[392358046,1761400276653,500.0,0.00018084,2]
[392358047,1761400276788,955.45,0.00018084,2]
[392358048,1761400278125,500.0,0.00018084,2]
[392358049,1761400278293,182.41474088,0.00018084,2]
[392358050,1761400281970,500.0,0.00018084,2]
[392358051,1761400282579,500.0,0.00018084,2]
[392358052,1761400283345,500.0,0.00018084,2]
[392358053,1761400286689,500.0,0.00018084,2]
[392358054,1761400286920,500.0,0.00018084,2]
[392358055,1761400288344,500.0,0.00018084,2]
[392358056,1761400289868,500.0,0.00018084,2]
[392358057,1761400291552,1934.41,0.00018084,2]
[392358058,1761400292365,346.13914586,0.00018084,2]
[392358059,1761400293233,1267.91418343,0.00018084,2]
[392358060,1761400293287,191.35581657,0.00018084,2]
[392358061,1761400293975,1581.88,0.00018084,2]
[392358062,1761400294162,500.0,0.00018084,2]
[392358063,1761400294276,500.0,0.00018084,2]
[392358064,1761400296271,150.0,0.0001966,30]
[392358065,1761400296707,500.0,0.00018084,2]
[392358066,1761400297912,500.0,0.00018084,2]
[392358067,1761400300074,1758.98,0.00018084,2]
[392358068,1761400300961,500.0,0.00018084,2]
[392358069,1761400301575,500.0,0.00018084,2]
[392358070,1761400302178,500.0,0.00018084,2]
[392358071,1761400303478,500.0,0.00018084,2]
[392358072,1761400305695,373.33,0.00018075,3]
[392358073,1761400307205,500.0,0.00018084,2]
[392358074,1761400307263,552.71550089,0.00018084,2]
[392358075,1761400307668,500.0,0.00018084,2]
[392358076,1761400308195,500.0,0.00018084,2]
[392358077,1761400308478,41.74868254,0.00018084,2]
[392358078,1761400308530,1796.96131746,0.00018084,2]
[392358079,1761400309529,903.28,0.00018084,2]
[392358080,1761400310243,500.0,0.00018084,2]
[392358081,1761400311758,770.03,0.00018084,2]
[392358082,1761400312630,500.0,0.00018084,2]
[392358083,1761400314175,500.0,0.00018084,2]
[392358084,1761400316066,500.0,0.00018084,2]
[392358085,1761400316346,186.67,0.00018075,3]
[392358086,1761400316527,698.14,0.00018084,2]
[392358087,1761400316590,500.0,0.00018084,2]
[392358088,1761400317199,500.0,0.00018084,2]
[392358089,1761400317883,500.0,0.00018084,2]
[392358090,1761400319459,500.0,0.00018084,2]
[392358091,1761400319909,500.0,0.00018084,2]
[392358092,1761400321039,500.0,0.00018084,2]
[392358093,1761400324085,500.0,0.00018084,2]
[392358094,1761400325598,144.92868254,0.00018084,2]
[392358095,1761400325657,155.07131746,0.00018084,2]
[392358096,1761400326263,1659.86,0.00018084,2]
[392358097,1761400326381,1635.99,0.00018084,2]
[392358098,1761400326966,560.01,0.00018075,3]
[392358099,1761400328871,500.0,0.00018084,2]
[392358100,1761400329793,500.0,0.00018084,2]
[392358101,1761400331198,824.95,0.00018084,2]